bitfinex-derivatives/quotes_ETHF0:USTF0_20250803
["timestamp","ask_amount","ask_price","bid_price","bid_amount"]
[1754218588092,1.4091,3486.3,3486.2,6.7995]
[1754218588392,3.5077,3486.3,3486.2,7.3915]
[1754218594395,2.211,3486.3,3486.2,7.3915]
[1754218594591,1.3222,3486.8,3486.3,1.3273]
[1754218594797,3.4805,3486.8,3486.7,3.415]
[1754218603197,1.4071,3487.1,3487.0,3.0438]
[1754218603496,4.05405,3487.1,3487.0,3.415]
[1754218603701,3.4805,3487.1,3487.0,3.415]
[1754218606598,3.4805,3486.8,3486.7,3.98861]
[1754218608602,3.4805,3486.8,3486.7,3.415]
[1754218620707,3.4805,3486.8,3486.7,0.9708]
[1754218621004,3.4805,3486.8,3486.6,3.78143]
[1754218621806,1.4071,3486.8,3486.7,3.415]
[1754218622210,3.4567,3486.8,3486.6,3.78143]
[1754218622406,3.4211,3486.7,3486.6,7.12493]
[1754218625910,3.4211,3486.7,3486.6,6.5513]
[1754218627011,3.4211,3486.7,3486.6,3.2078]
[1754218628511,3.4211,3486.3,3486.2,3.2078]
[1754218629017,0.4825,3485.9,3485.8,0.565]
[1754218629310,2.6845,3485.9,3485.8,2.6304]
[1754218629505,3.4211,3485.9,3485.8,3.3435]
[1754218631408,3.4211,3485.9,3485.8,0.9677]
[1754218631809,3.4211,3485.9,3485.8,2.4236]
[1754218632108,3.4211,3485.9,3485.8,2.9886]
[1754218632417,3.4211,3485.9,3485.8,3.3435]
[1754218634013,0.57376,3485.9,3485.8,3.3435]
[1754218634315,3.99486,3485.9,3485.8,3.3435]
[1754218636118,3.4211,3485.9,3485.8,3.3435]
[1754218644620,1.46271,3486.2,3486.1,0.8463]
[1754218644925,1.46271,3486.2,3486.1,3.3435]
[1754218644926,3.99481,3486.2,3486.1,3.3435]
[1754218645622,3.4211,3486.2,3486.1,3.3435]
[1754218650210,2.1046,3486.2,3486.1,3.3435]
[1754218650413,1.4689,3486.4,3486.3,3.3435]
[1754218650618,3.4211,3486.5,3486.4,2.8672]
[1754218650817,2.8412,3486.5,3486.4,3.3435]
[1754218651117,3.4211,3486.5,3486.4,3.3435]
[1754218651921,0.57359,3486.9,3486.4,1.3226]
[1754218652120,3.3447,3486.6,3486.5,3.393]
[1754218653115,1.2743,3486.8,3486.6,1.2962]
[1754218653321,3.3447,3486.8,3486.7,3.393]
[1754218655819,1.3475,3486.8,3486.5,3.2078]
[1754218656127,3.3447,3486.2,3486.1,5.6823]
[1754218656321,3.3447,3486.2,3486.1,6.6008]
[1754218658529,1.3475,3486.8,3486.7,1.3585]
[1754218658825,3.3447,3486.8,3486.7,3.393]
[1754218661029,3.3447,3486.8,3486.7,2.4745]
[1754218661630,3.3447,3486.8,3486.5,2.0345]
[1754218661832,1.3475,3486.6,3486.5,3.0189]
[1754218662032,2.6218,3486.6,3486.5,3.393]
[1754218662329,3.3447,3486.6,3486.5,3.393]
[1754218664828,1.3475,3486.3,3486.2,1.61539]
[1754218665128,3.3447,3486.3,3486.2,3.96669]
[1754218666632,3.3447,3486.3,3486.2,3.393]
[1754218669325,3.2078,3486.9,3486.3,2.0345]
[1754218669630,3.3447,3486.8,3486.7,3.393]
[1754218669933,3.3447,3486.8,3486.7,1.7362]
[1754218670230,2.6279,3486.6,3486.5,3.393]
[1754218670431,3.3447,3486.6,3486.5,3.393]
[1754218680433,1.3475,3486.8,3486.7,1.3585]
[1754218680634,2.18405191,3486.8,3486.7,3.393]
[1754218681136,4.18125191,3486.8,3486.7,3.393]
[1754218686539,1.33355191,3486.8,3486.7,3.393]
[1754218686738,3.70195191,3486.8,3486.7,3.393]
[1754218686940,2.8654,3486.8,3486.7,3.393]
[1754218688648,1.4218,3486.8,3486.7,3.393]
[1754218689245,2.8654,3486.8,3486.7,3.393]
[1754218689447,3.3713,3486.8,3486.7,3.393]
[1754218693153,0.57354,3487.2,3486.7,3.42222]
[1754218693353,4.20785257,3487.1,3487.0,3.3662]
[1754218699155,1.70765257,3487.1,3487.0,1.3259]
[1754218699363,1.4218,3487.1,3487.0,3.3662]
[1754218699660,2.1689,3487.1,3487.0,3.3662]
[1754218700160,3.3713,3487.1,3487.0,3.3662]
[1754218707361,1.377,3487.1,3487.0,3.3662]
[1754218707666,0.8711,3487.1,3487.0,3.3662]
[1754218707867,3.3713,3487.3,3487.2,3.3662]
[1754218716170,3.3713,3487.3,3487.2,3.93974]
[1754218716466,2.1109,3487.3,3487.2,3.93974]
[1754218716667,2.7874,3487.3,3487.2,3.93974]
[1754218717174,3.2654,3487.3,3487.2,3.3662]
[1754218719166,3.8957,3487.8,3487.5,0.57348]
[1754218719373,4.06867133,3487.7,3487.6,3.2411]
[1754218719671,3.2324,3487.7,3487.6,3.2411]
[1754218721872,2.00442,3488.1,3488.0,1.292]
[1754218722067,2.84023588,3488.1,3488.0,3.2411]
[1754218722567,4.06821588,3488.1,3488.0,3.2411]
[1754218723265,4.06804525,3488.1,3488.0,3.2411]
[1754218724373,3.2324,3488.1,3488.0,3.2411]
[1754218725767,3.2324,3488.1,3488.0,0.9346]
[1754218725972,3.2324,3488.1,3488.0,3.2411]
[1754218727669,3.8058,3488.1,3487.8,3.2078]
[1754218727870,3.2324,3487.9,3487.8,6.0915]
[1754218728175,1.3161,3487.5,3487.4,4.4998]
[1754218728370,3.2324,3487.5,3487.4,6.4489]
[1754218730674,3.2324,3487.5,3487.4,4.4998]
[1754218730878,1.3161,3487.3,3487.2,2.8837]
[1754218731079,3.2324,3487.3,3487.2,3.2411]
[1754218731673,1.12539,3487.5,3487.2,3.2411]
[1754218731874,1.868,3487.4,3487.3,3.2411]
[1754218732075,3.2324,3487.4,3487.3,3.2411]
[1754218732277,0.57349,3487.5,3487.3,3.2411]
[1754218732580,3.2324,3487.4,3487.3,3.2411]
[1754218732882,3.2324,3487.1,3487.0,6.4489]
[1754218733276,3.2078,3487.8,3487.0,6.4489]
[1754218733277,1.3644,3487.7,3487.0,5.1569]
[1754218733483,1.3161,3487.7,3487.6,0.4624]
[1754218733676,2.15085307,3487.7,3487.6,1.8722]
[1754218733877,0.57347,3487.6,3487.4,1.2562]
[1754218734082,3.2324,3487.5,3487.4,3.2411]
[1754218735782,1.3161,3487.2,3487.1,3.2411]
[1754218736084,3.2324,3487.2,3487.1,3.2411]
[1754218742985,2.41339,3487.5,3487.4,1.3014]
[1754218743289,3.2213,3487.3,3487.2,3.1808]
[1754218747789,2.41343,3487.3,3487.0,3.2078]
[1754218747986,1.3142,3487.2,3487.1,3.1808]
[1754218748291,3.2213,3487.2,3487.1,3.1808]
[1754218752286,3.79484,3487.2,3487.1,3.1808]
[1754218752486,3.2213,3487.2,3487.1,3.1808]
[1754218756690,0.57351,3487.4,3487.1,1.809]
[1754218756889,1.3142,3487.2,3487.1,1.3014]
[1754218757085,3.2213,3487.2,3487.1,1.3014]
[1754218757296,1.3645,3487.2,3487.1,2.6732]
[1754218757497,0.5257,3487.3,3487.2,1.8794]
[1754218757701,3.2213,3487.3,3487.2,3.1808]
[1754218762696,3.79482,3487.3,3487.0,3.2078]
[1754218762901,1.3142,3486.8,3486.7,1.3014]
[1754218763202,3.2213,3486.8,3486.7,3.1808]
[1754218777109,3.2213,3486.8,3486.7,3.75442]
[1754218777307,3.2213,3486.8,3486.7,3.1808]
[1754218782712,1.88781,3486.8,3486.6,3.2078]
[1754218782919,3.1125,3486.7,3486.6,6.0034]
[1754218783615,1.2613,3486.3,3485.8,4.5796]
[1754218783820,3.1125,3485.9,3485.8,3.2078]
[1754218784120,3.1125,3485.8,3485.7,3.1261]
[1754218786616,3.1125,3485.8,3485.7,1.1095]
[1754218786921,1.83508,3485.8,3485.7,2.3552]
[1754218787422,3.68628,3485.8,3485.7,2.3552]
[1754218788416,3.1125,3485.5,3485.4,4.4181]
[1754218788616,3.1125,3485.5,3485.4,6.3339]
[1754218793529,3.1125,3485.5,3484.6,41.302]
[1754218793530,0.57383,3485.4,3485.1,1.8794]
[1754218793726,1.2613,3485.2,3485.1,3.1261]
[1754218793928,1.83518,3485.2,3485.1,3.1261]
[1754218794224,3.68638,3485.2,3485.1,3.1261]
[1754218794422,3.68638,3485.2,3485.1,1.2467]
[1754218794615,2.6361,3485.1,3485.0,3.2078]
[1754218794816,3.1125,3485.1,3485.0,3.2078]
[1754218795130,3.1125,3485.1,3485.0,6.3339]
[1754218795322,1.8352,3485.0,3484.6,3.2078]
[1754218795527,4.64233,3485.6,3484.7,3.1261]
[1754218795528,1.83524,3484.8,3484.7,3.1261]
[1754218796126,3.68644,3484.8,3484.6,3.2078]
[1754218796322,2.6361,3484.7,3484.6,4.4181]
[1754218796527,3.1125,3484.7,3484.6,6.3339]
[1754218797323,3.1125,3484.7,3484.6,3.2078]
[1754218797530,3.68646,3484.6,3484.5,1.2467]
[1754218797731,3.68646,3484.6,3484.5,3.1261]
[1754218798338,4.64223,3485.8,3485.1,0.3305]
[1754218798530,4.64223,3485.8,3484.5,3.2078]
[1754218798531,3.68635,3485.4,3485.3,3.1261]
[1754218802036,3.0846,3485.8,3485.7,3.137]
[1754218804029,0.9276,3485.4,3485.3,4.1199]
[1754218804329,3.0846,3485.4,3485.3,4.4708]
[1754218804727,0.9276,3485.4,3485.3,6.3448]
[1754218805224,1.8093,3485.6,3485.3,4.4708]
[1754218805430,2.7369,3485.6,3485.5,1.263]
[1754218805629,2.7369,3485.6,3485.5,3.137]
[1754218806037,3.0846,3485.6,3485.5,3.137]
[1754218806836,0.3477,3485.1,3485.0,2.2249]
[1754218807034,3.0846,3485.1,3485.0,3.137]
[1754218807936,0.4673,3485.1,3485.0,3.137]
[1754218808234,0.9276,3485.3,3485.2,3.137]
[1754218808435,3.00928,3485.8,3485.7,1.263]
[1754218808636,3.65838,3485.8,3485.7,1.263]
[1754218808834,3.65838,3485.8,3485.7,3.137]
[1754218811940,3.0846,3485.8,3485.7,3.137]
[1754218814936,22.6956,3485.8,3485.7,3.137]
[1754218816837,3.2078,3486.5,3485.8,0.703]
[1754218817140,3.93211955,3486.4,3486.3,3.137]
[1754218817443,1.77511955,3486.4,3486.3,3.137]
[1754218817640,2.93531955,3486.4,3486.3,3.137]
[1754218817843,3.58441955,3486.4,3486.3,3.137]
[1754218818237,2.7369,3486.4,3486.3,3.137]
[1754218818444,3.58517145,3486.4,3486.3,3.137]
[1754218820033,0.84827145,3486.4,3486.3,3.137]
[1754218820235,23.9801,3486.5,3486.4,1.219]
[1754218820435,6.79264364,3486.5,3486.4,3.137]
[1754218820635,1.1602,3486.8,3486.4,3.137]
[1754218820848,1.96118475,3486.7,3486.6,1.263]
[1754218821043,0.01118,3487.0,3486.9,3.137]
[1754218821236,0.01118,3487.0,3486.9,6.3448]
[1754218826641,19.608,3487.7,3486.9,4.4708]
[1754218826847,19.608,3487.7,3487.2,3.137]
[1754218826848,3.0846,3487.3,3487.2,3.137]
[1754218828541,19.608,3487.7,3487.2,1.263]
[1754218828743,1.9244,3487.7,3487.6,3.137]
[1754218829245,3.0846,3487.7,3487.6,3.137]
[1754218832348,3.0846,3487.7,3486.9,3.2078]
[1754218832349,1.3015,3488.1,3487.5,1.7888]
[1754218832540,1.2141,3488.0,3487.9,1.2637]
[1754218832740,1.7024,3488.0,3487.9,3.0525]
[1754218833245,3.0039,3488.0,3487.9,3.0525]
[1754218837155,1.7898,3488.2,3487.9,3.0525]
[1754218837450,3.0039,3488.1,3488.0,3.0525]
[1754218838150,2.0318,3488.1,3488.0,3.0525]
[1754218838651,2.6791,3488.1,3488.0,3.0525]
[1754218838849,21.3908,3488.4,3488.1,0.5234]
[1754218839152,21.9507,3488.4,3488.3,3.0525]
[1754218839552,22.6049,3488.4,3488.3,3.0525]
[1754218841556,22.6049,3488.4,3488.3,2.6002]
[1754218841957,22.6049,3488.4,3488.3,3.0525]
[1754218842549,3.2078,3488.7,3488.3,3.0525]
[1754218842755,2.6791,3488.4,3488.3,1.2637]
[1754218843158,3.0039,3488.4,3488.3,1.8951]
[1754218843355,3.0039,3488.4,3488.3,3.0525]
[1754218846561,3.0039,3488.4,3488.3,0.8114]
[1754218847263,3.0039,3488.4,3488.3,2.6002]
[1754218847464,3.0039,3488.4,3488.3,3.0525]
[1754218849264,3.84824283,3488.4,3488.3,3.0525]
[1754218851267,3.84824283,3488.4,3487.9,1.1574]
[1754218851473,1.2141,3488.0,3487.9,3.0525]
[1754218851672,3.0039,3488.0,3487.9,3.0525]
[1754218854172,3.84963078,3488.0,3487.9,3.0525]
[1754218854371,3.0039,3488.0,3487.9,3.0525]
[1754218855176,3.84969545,3488.0,3487.9,3.0525]
[1754218855374,3.0039,3488.0,3487.9,3.0525]
[1754218855875,3.84969772,3488.0,3487.9,3.0525]
[1754218856874,1.73509772,3488.0,3487.9,3.0525]
[1754218857075,1.7898,3488.2,3487.9,3.0525]
[1754218857275,0.84598289,3488.1,3488.0,3.0525]
[1754218858082,1.92718289,3488.1,3488.0,3.0525]
[1754218858278,1.0812,3488.1,3488.0,3.0525]
[1754218858580,1.1356,3488.2,3488.0,3.0525]
[1754218858778,1.0812,3488.3,3488.2,1.2637]
[1754218858974,2.41561647,3488.3,3488.2,3.0525]
[1754218859183,1.27311647,3488.3,3488.2,3.0525]
[1754218859382,1.27311647,3488.3,3488.2,6.2603]
[1754218859675,0.84611647,3488.3,3488.2,6.2603]
[1754218860281,2.41561647,3488.3,3488.2,6.2603]
[1754218860475,3.20271647,3488.3,3488.2,6.2603]
[1754218860681,3.85001647,3488.3,3488.2,6.2603]
[1754218863188,0.84611647,3488.3,3488.2,6.2603]
[1754218863882,2.44271647,3488.3,3488.2,6.2603]
[1754218864183,3.85621647,3488.3,3488.2,6.2603]
[1754218864786,3.0101,3488.3,3488.2,6.2603]
[1754218869481,3.2078,3488.7,3488.2,6.2603]
[1754218869682,0.00494207,3489.0,3488.5,1.1445]
[1754218869683,1.18014207,3489.0,3488.5,1.1445]
[1754218869883,1.26830328,3488.9,3488.8,1.1445]
[1754218870083,3.85700328,3488.9,3488.8,2.8804]
[1754218870279,3.85700328,3488.9,3488.8,0.726]
[1754218870484,3.85700328,3488.9,3488.8,2.4619]
[1754218872688,3.85700328,3488.9,3488.8,2.8804]
[1754218873489,0.00494207,3489.0,3488.8,1.1445]
[1754218873685,0.00494207,3489.0,3488.6,3.2078]
[1754218873686,0.00494207,3489.0,3488.9,2.8804]
[1754218873882,0.85106682,3489.0,3488.9,2.8804]
[1754218874988,3.86116682,3489.0,3488.9,2.8804]
[1754218875391,3.01504207,3489.0,3488.9,2.8804]
[1754218876191,3.0101,3488.9,3488.8,2.1501]
[1754218876386,3.0101,3488.9,3488.8,2.8804]
[1754218885995,1.175,3488.7,3488.6,3.2078]
[1754218886299,3.85757946,3488.7,3488.6,3.2078]
[1754218886700,3.85757946,3488.7,3488.6,4.9437]
[1754218887002,3.85757946,3488.7,3488.6,6.0882]
[1754218890502,0.84747946,3488.7,3488.6,6.0882]
[1754218891194,1.26887946,3488.7,3488.6,6.0882]
[1754218891394,3.10397946,3488.7,3488.6,6.0882]
[1754218891597,2.42647946,3488.7,3488.6,6.0882]
[1754218892108,0.84747946,3488.7,3488.6,6.0882]
[1754218892300,0.66964207,3489.0,3488.6,6.0882]
[1754218892604,0.66964207,3489.0,3488.8,1.1496]
[1754218892605,0.84794978,3488.9,3488.8,1.1496]
[1754218892801,0.00494207,3489.0,3488.9,2.8879]
[1754218893103,0.85287943,3489.0,3488.9,2.8879]
[1754218894800,2.42487943,3489.0,3488.9,2.8879]
[1754218895101,3.08957943,3489.0,3488.9,2.8879]
[1754218895902,3.50147943,3489.0,3488.9,2.8879]
[1754218896406,3.82197943,3489.0,3488.9,2.8879]
[1754218897603,2.9691,3488.7,3488.4,1.1028]
[1754218897910,2.9691,3488.5,3488.4,2.8879]
[1754218899699,2.9691,3488.5,3488.2,3.2078]
[1754218900004,2.9691,3488.3,3488.2,6.0957]
[1754218911915,2.9691,3488.3,3488.2,3.2078]
[1754218912219,2.9691,3488.2,3488.1,2.8879]
[1754218912620,2.2367,3488.1,3488.0,0.4148]
[1754218912817,1.1821,3487.9,3487.8,3.9332]
[1754218913119,2.9691,3487.9,3487.8,6.0957]
[1754218915630,3.81560953,3487.9,3487.8,6.0957]
[1754218916429,2.9691,3487.9,3487.8,6.0957]
[1754218917232,2.9691,3487.9,3487.8,4.3574]
[1754218917534,2.9691,3487.9,3487.8,6.0957]
[1754218919434,0.4967,3488.4,3487.9,1.7383]
[1754218919732,3.81491961,3488.3,3488.2,2.8879]
[1754218920723,0.84581961,3488.3,3488.2,2.8879]
[1754218922038,1.787,3488.5,3488.2,2.8879]
[1754218922233,1.5101,3488.4,3488.3,1.0981]
[1754218922429,2.561,3488.4,3488.3,2.884]
[1754218923239,0.8407,3488.4,3488.3,2.884]
[1754218923632,2.561,3488.4,3488.3,2.884]
[1754218924340,3.40695021,3488.4,3488.3,2.884]
[1754218924937,0.84595021,3488.4,3488.3,2.884]
[1754218925441,2.34745021,3488.4,3488.3,2.884]
[1754218925641,1.24665021,3488.4,3488.3,2.884]
[1754218925939,0.4007,3488.4,3488.3,2.884]
[1754218926335,2.121,3488.4,3488.3,2.884]
[1754218928038,2.561,3488.4,3488.3,2.884]
[1754218928237,2.8605,3488.4,3488.3,2.884]
[1754218933937,1.10574207,3489.0,3488.3,1.1676]
[1754218934137,1.68718817,3488.9,3488.8,1.1676]
[1754218934346,1.68718817,3488.9,3488.8,2.884]
[1754218934942,0.84648817,3488.9,3488.8,2.884]
[1754218935345,0.00494207,3489.0,3488.8,1.1676]
[1754218935542,0.00494207,3489.0,3488.6,3.2078]
[1754218935543,2.12594207,3489.0,3488.9,2.884]
[1754218935738,3.41226801,3489.0,3488.9,2.884]
[1754218936347,2.56594207,3489.0,3488.9,2.884]
[1754218937041,2.86544207,3489.0,3488.9,2.884]
[1754218938744,2.24594207,3489.0,3488.9,2.884]
[1754218939047,1.94644207,3489.0,3488.9,2.884]
[1754218939444,2.86544207,3489.0,3488.9,2.884]
[1754218941451,0.00494207,3489.0,3488.9,2.2657]
[1754218941644,2.86544207,3489.0,3488.9,2.884]
[1754218941842,1.1402,3488.7,3488.6,6.0918]
[1754218942143,2.8605,3488.7,3488.6,6.0918]
[1754218943747,2.8605,3488.7,3488.6,3.539]
[1754218944053,2.8605,3488.7,3488.6,3.2078]
[1754218944447,2.8605,3488.7,3488.6,4.9242]
[1754218944748,2.8605,3488.7,3488.6,6.0918]
[1754218945648,19.57,3488.9,3488.6,4.3754]
[1754218945851,19.57,3488.9,3488.8,2.884]
[1754218946051,0.84549979,3488.9,3488.8,2.884]
[1754218946251,0.00494207,3489.0,3488.9,2.884]
[1754218953658,1.9105,3489.8,3489.7,1.1197]
[1754218953861,3.37710235,3489.8,3489.7,2.8376]
[1754218954058,0.84590235,3489.8,3489.7,2.8376]
[1754218954769,1.08,3490.0,3489.9,1.1197]
[1754218955060,1.92573714,3490.0,3489.9,2.8376]
[1754218956055,1.08,3490.0,3489.9,2.8376]
[1754218958164,1.4815,3490.0,3489.9,6.0454]
[1754218958555,1.4815,3490.0,3489.9,2.8376]
[1754218958755,3.9285,3490.0,3489.9,2.8376]
[1754218959455,1.4815,3490.0,3489.9,2.8376]
[1754218959650,3.9285,3490.0,3489.5,3.2078]
[1754218959858,2.8485,3489.9,3489.8,1.1197]
[1754218960154,1.1432,3489.9,3489.5,3.8196]
[1754218960364,1.1432,3489.6,3489.5,4.3275]
[1754218960554,2.8485,3489.6,3489.5,4.3275]
[1754218960960,2.8485,3489.6,3489.5,6.0454]
[1754218964167,2.8485,3489.6,3489.5,3.2078]
[1754218964465,1.7053,3489.5,3489.1,3.8596]
[1754218964660,2.8485,3489.2,3489.1,4.9793]
[1754218964862,1.7053,3489.9,3489.2,0.6518]
[1754218965058,2.8485,3489.3,3489.2,2.8376]
[1754218965461,0.6207,3489.9,3489.2,1.1197]
[1754218965665,2.8485,3489.8,3489.7,2.8376]
[1754218967762,3.69302109,3489.8,3489.7,2.8376]
[1754218967963,3.69302109,3489.8,3489.5,1.7179]
[1754218968167,1.1432,3489.6,3489.5,1.7315]
[1754218968363,2.8485,3489.6,3489.5,1.7315]
[1754218969268,2.8485,3489.6,3489.5,2.8376]
[1754218970068,2.8485,3489.2,3489.1,6.0454]
[1754218971968,0.6207,3489.7,3489.2,1.7179]
[1754218972160,2.8485,3489.3,3489.2,1.1197]
[1754218972768,2.8485,3489.3,3489.2,2.8376]
[1754218981071,4.2878,3490.0,3489.2,2.8376]
[1754218981266,2.8485,3489.8,3489.7,0.3968]
[1754218981471,3.69491763,3489.8,3489.7,2.8376]
[1754218981871,2.8432,3489.2,3489.1,5.9842]
[1754218986775,1.7265,3489.9,3489.2,1.0281]
[1754218987078,1.1167,3489.4,3489.3,2.1707]
[1754218987278,2.8432,3489.4,3489.3,2.7764]
[1754218990069,2.8432,3489.4,3489.3,0.326]
[1754218990378,2.8432,3489.2,3489.1,5.9842]
[1754218992981,2.5208,3489.2,3489.1,5.9842]
[1754218993181,0.7943,3489.2,3489.1,5.9842]
[1754218993591,2.5208,3489.2,3489.1,5.9842]
[1754218995190,2.8432,3489.2,3489.1,5.9842]
[1754218996694,2.8432,3489.2,3489.1,3.2078]
[1754218996991,3.69124863,3489.2,3489.1,3.2078]
[1754218999390,3.69124863,3489.2,3488.9,1.6338]
[1754218999595,1.1167,3489.0,3488.9,1.6338]
[1754218999893,3.689155,3489.0,3488.9,2.7764]
[1754219000189,2.8432,3489.0,3488.9,2.7764]
[1754219006097,2.5208,3489.0,3488.9,2.7764]
[1754219007199,3.2078,3489.5,3489.0,1.6338]
[1754219007398,4.3245,3489.5,3489.4,2.0394]
[1754219007598,5.16999522,3489.5,3489.4,2.0394]
[1754219007900,6.89649522,3489.5,3489.4,0.4056]
[1754219008997,6.89649522,3489.5,3489.4,2.0394]
[1754219010703,6.89649522,3489.5,3488.6,3.2078]
[1754219010897,2.89439522,3489.4,3489.3,2.7764]
[1754219011100,3.68869522,3489.4,3489.3,2.7764]
[1754219012204,1.24019522,3489.4,3489.3,2.7764]
[1754219012503,0.84549522,3489.4,3489.3,2.7764]
[1754219013705,2.7616,3489.7,3489.6,1.1061]
[1754219013907,3.60704126,3489.7,3489.6,2.7483]
[1754219017006,0.84544126,3489.7,3489.6,2.7483]
[1754219017207,1.23264126,3489.7,3489.6,2.7483]
[1754219017408,0.84544126,3489.7,3489.6,2.7483]
[1754219017708,3.30794126,3489.7,3489.6,2.7483]
[1754219018402,1.65304126,3489.7,3489.6,2.7483]
[1754219018604,1.23264126,3489.7,3489.6,2.7483]
[1754219020310,2.29594126,3489.7,3489.6,2.7483]
[1754219020800,1.23264126,3489.7,3489.6,2.7483]
[1754219021210,0.3872,3489.7,3489.6,2.7483]
[1754219022009,1.4505,3489.7,3489.6,2.7483]
[1754219022306,2.0421,3489.7,3489.6,2.7483]
[1754219022915,2.4625,3489.7,3489.6,2.7483]
[1754219023214,1.8709,3489.7,3489.6,2.7483]
[1754219024414,1.08,3490.0,3489.6,2.7483]
[1754219024615,1.4672,3490.0,3489.9,5.9561]
[1754219024914,3.8416,3490.0,3489.9,5.9561]
[1754219025515,3.8416,3490.0,3489.9,4.3139]
[1754219025722,3.8416,3490.0,3489.9,5.9561]
[1754219026613,3.8416,3490.0,3489.9,3.2078]
[1754219026911,3.8416,3490.0,3489.9,4.2772]
[1754219027129,3.8416,3490.0,3489.9,5.9561]
[1754219033721,1.08,3490.0,3489.9,5.9561]
[1754219034025,3.8416,3490.0,3489.9,5.9561]
[1754219034223,3.8416,3490.0,3489.9,5.3309]
[1754219034512,4.68359452,3490.0,3489.9,3.2078]
[1754219035116,3.62029452,3490.0,3489.5,3.2078]
[1754219035311,1.1067,3489.7,3489.6,2.7483]
[1754219035516,2.7616,3489.7,3489.6,2.7483]
[1754219036022,2.7616,3489.6,3489.5,5.9561]
[1754219040319,0.3872,3489.6,3489.5,5.9561]
[1754219041823,1.9733,3489.6,3489.5,5.9561]
[1754219042623,2.699,3489.6,3489.5,5.9561]
[1754219044823,2.2134,3490.0,3489.9,1.099]
[1754219045027,3.05660391,3490.0,3489.9,2.755]
[1754219045227,3.05660391,3490.0,3489.9,0.3215]
[1754219045427,4.64270391,3490.0,3489.9,0.3215]
[1754219045622,3.7995,3490.0,3489.9,0.3215]
[1754219045825,3.7995,3490.0,3489.9,1.9775]
[1754219046028,4.64275612,3490.0,3489.9,2.755]
[1754219050933,2.7195,3489.6,3489.5,5.9628]
[1754219051527,1.08,3490.0,3489.5,5.9628]
[1754219051833,3.7995,3490.0,3489.9,2.755]
[1754219052133,4.64298383,3490.0,3489.9,2.755]
[1754219059234,4.64298383,3490.0,3489.5,3.2078]
[1754219059235,2.7195,3489.9,3489.8,1.099]
[1754219059437,3.56298383,3489.9,3489.8,2.755]
[1754219060943,3.56298383,3489.9,3489.8,0.3215]
[1754219061839,3.56298383,3489.9,3489.6,1.656]
[1754219062141,2.7195,3489.7,3489.6,2.755]
[1754219066442,3.56246448,3489.7,3489.6,2.755]
[1754219066738,2.7195,3489.7,3489.6,2.755]
[1754219066939,3.56246396,3489.7,3489.6,2.755]
[1754219067138,2.7195,3489.7,3489.6,2.755]
[1754219070645,1.08,3490.0,3489.6,2.755]
[1754219070946,3.56253422,3489.9,3489.8,2.755]
[1754219075141,1.97643422,3489.9,3489.8,2.755]
[1754219075348,2.72473422,3489.9,3489.8,2.755]
[1754219075544,3.30793422,3489.9,3489.8,2.755]
[1754219075848,3.61863422,3489.9,3489.8,2.755]
[1754219081458,1.02948727,3490.8,3490.5,1.049]
[1754219081649,2.7371,3490.8,3490.7,3.2078]
[1754219081859,2.88897249,3490.8,3490.7,3.2078]
[1754219082152,1.0837,3490.3,3490.2,0.5846]
[1754219082356,0.7017,3490.1,3490.0,1.9621]
[1754219082659,2.7371,3490.1,3490.0,0.9505]
[1754219083159,2.7371,3490.1,3490.0,1.9621]
[1754219084359,2.7371,3490.1,3490.0,2.6452]
[1754219085556,2.7371,3490.1,3490.0,0.9505]
[1754219086060,2.7371,3490.1,3490.0,2.6452]
[1754219087061,2.7371,3490.1,3490.0,0.9505]
[1754219087560,2.7371,3490.1,3490.0,1.9621]
[1754219088460,2.7371,3490.1,3490.0,2.6452]
[1754219093060,2.7371,3490.1,3490.0,2.3338]
[1754219093262,2.7371,3490.1,3490.0,0.9505]
[1754219093457,3.59182898,3490.1,3490.0,1.3546]
[1754219093660,1.6534,3490.0,3489.9,3.2078]
[1754219093957,3.59183828,3490.0,3489.9,4.1583]
[1754219094757,3.59183828,3490.0,3489.9,5.5416]
[1754219094958,3.59183828,3490.0,3489.9,5.853]
[1754219100565,3.00863828,3490.0,3489.9,5.853]
[1754219100767,3.59183828,3490.0,3489.9,5.853]
[1754219105363,3.00863828,3490.0,3489.9,5.853]
[1754219105570,1.92493828,3490.0,3489.9,5.853]
[1754219106070,3.04013828,3490.0,3489.9,5.853]
[1754219106369,3.60413828,3490.0,3489.9,5.853]
[1754219112372,3.54273828,3490.0,3489.9,5.853]
[1754219117162,0.85473828,3490.0,3489.9,5.853]
[1754219117365,5.3318,3490.6,3490.5,1.093]
[1754219117566,6.75120142,3490.6,3490.5,2.6134]
[1754219118172,3.54340142,3490.6,3490.5,2.6134]
[1754219119078,0.85540142,3490.6,3490.5,2.6134]
[1754219119870,20.5508,3490.9,3490.5,2.6134]
[1754219120070,2.18205115,3490.8,3490.7,1.093]
[1754219120271,2.18205115,3490.8,3490.7,2.6134]
[1754219120472,1.3271,3490.8,3490.7,2.6134]
[1754219120876,41.268,3491.1,3490.7,2.6134]
[1754219121176,2.97849029,3491.0,3490.9,2.6134]
[1754219121376,1.86329029,3491.0,3490.9,2.6134]
[1754219121777,1.0088,3491.0,3490.9,2.6134]
[1754219121982,1.41814787,3491.0,3490.9,2.6134]
[1754219122275,0.5641,3491.0,3490.9,2.6134]
[1754219122881,1.0088,3491.0,3490.9,2.6134]